[Event "*** Titled Tuesday 3|2 Blitz"]
[Site "Chess.com"]
[Date "2017.05.02"]
[Round "8"]
[White "supertfc"]
[Black "djogrodek1"]
[Result "1/2-1/2"]
[WhiteElo "2342"]
[BlackElo "2412"]
[TimeControl "180+2"]
[EndTime "14:49:07 PDT"]
[Termination "Game drawn - insufficient material"]

1. e4 {[%clk 0:03:02]} 1... c5 {[%clk 0:03:00.4]} 2. Nf3 {[%clk 0:03:02.7]} 2...
d6 {[%clk 0:03:01.7]} 3. d4 {[%clk 0:03:03.8]} 3... cxd4 {[%clk 0:03:03.6]} 4.
Nxd4 {[%clk 0:03:05.3]} 4... Nf6 {[%clk 0:03:05.2]} 5. Nc3 {[%clk 0:03:06.3]}
5... g6 {[%clk 0:03:06.8]} 6. Be3 {[%clk 0:03:05.9]} 6... Bg7 {[%clk 0:03:08.3]}
7. f3 {[%clk 0:03:07.1]} 7... O-O {[%clk 0:03:10.2]} 8. Qd2 {[%clk 0:03:07.1]}
8... Nc6 {[%clk 0:03:12.1]} 9. g4 {[%clk 0:03:07.8]} 9... Be6 {[%clk 0:03:12.5]}
10. Nxe6 {[%clk 0:03:08]} 10... fxe6 {[%clk 0:03:14.4]} 11. O-O-O {[%clk
0:03:06.2]} 11... Ne5 {[%clk 0:03:15.2]} 12. Be2 {[%clk 0:03:07.3]} 12... Qc8
{[%clk 0:03:16.6]} 13. Kb1 {[%clk 0:02:49.9]} 13... Nfd7 {[%clk 0:03:17.2]} 14.
f4 {[%clk 0:02:48.5]} 14... Nc4 {[%clk 0:03:17.9]} 15. Bxc4 {[%clk 0:02:49.5]}
15... Qxc4 {[%clk 0:03:19.8]} 16. e5 {[%clk 0:02:50.7]} 16... Nb6 {[%clk
0:03:17.1]} 17. Bd4 {[%clk 0:02:03.7]} 17... dxe5 {[%clk 0:02:55.4]} 18. fxe5
{[%clk 0:02:01.5]} 18... Rfd8 {[%clk 0:02:45.9]} 19. Rhe1 {[%clk 0:01:57.7]}
19... Rac8 {[%clk 0:02:43]} 20. Qd3 {[%clk 0:01:47.4]} 20... Qc7 {[%clk
0:02:32.4]} 21. Qe4 {[%clk 0:01:32.6]} 21... Nc4 {[%clk 0:02:31.4]} 22. b3
{[%clk 0:01:31.4]} 22... Nxe5 {[%clk 0:00:47.4]} 23. Nb5 {[%clk 0:01:15]} 23...
Qa5 {[%clk 0:00:38.5]} 24. Bxe5 {[%clk 0:01:02.2]} 24... Qxb5 {[%clk 0:00:33.4]}
25. Bxg7 {[%clk 0:00:58.6]} 25... Kxg7 {[%clk 0:00:35.3]} 26. Qxe6 {[%clk
0:00:59.3]} 26... Rxd1+ {[%clk 0:00:32.4]} 27. Rxd1 {[%clk 0:00:59.4]} 27... Rc7
{[%clk 0:00:34.3]} 28. a4 {[%clk 0:00:18.5]} 28... Qc5 {[%clk 0:00:34.1]} 29.
Qe4 {[%clk 0:00:10.3]} 29... b5 {[%clk 0:00:34.4]} 30. axb5 {[%clk 0:00:09.9]}
30... Qxb5 {[%clk 0:00:36.3]} 31. Rd8 {[%clk 0:00:08.7]} 31... Qf1+ {[%clk
0:00:32.5]} 32. Kb2 {[%clk 0:00:07.9]} 32... Qf6+ {[%clk 0:00:33.2]} 33. Kb1
{[%clk 0:00:07.1]} 33... Rc6 {[%clk 0:00:23.5]} 34. Rd7 {[%clk 0:00:05.5]} 34...
Re6 {[%clk 0:00:20.6]} 35. Qd4 {[%clk 0:00:05.6]} 35... Qxd4 {[%clk 0:00:16.4]}
36. Rxd4 {[%clk 0:00:07.5]} 36... Re2 {[%clk 0:00:17.7]} 37. h4 {[%clk 0:00:08]}
37... Kf6 {[%clk 0:00:19.2]} 38. g5+ {[%clk 0:00:09]} 38... Kf5 {[%clk
0:00:20.2]} 39. Ra4 {[%clk 0:00:09.1]} 39... e5 {[%clk 0:00:12.5]} 40. Rxa7
{[%clk 0:00:09.4]} 40... e4 {[%clk 0:00:14.4]} 41. Rxh7 {[%clk 0:00:10.1]} 41...
e3 {[%clk 0:00:15.9]} 42. Kb2 {[%clk 0:00:08.3]} 42... Rh2 {[%clk 0:00:16]} 43.
Kc3 {[%clk 0:00:07.4]} 43... Kf4 {[%clk 0:00:14.4]} 44. Rf7+ {[%clk 0:00:06.1]}
44... Kg3 {[%clk 0:00:15.1]} 45. Kd3 {[%clk 0:00:05.3]} 45... Rd2+ {[%clk
0:00:11.6]} 46. Kxe3 {[%clk 0:00:05]} 46... Rxc2 {[%clk 0:00:13.1]} 47. Rh7
{[%clk 0:00:03]} 47... Rc3+ {[%clk 0:00:13.2]} 48. Ke4 {[%clk 0:00:04.3]} 48...
Rxb3 {[%clk 0:00:15.1]} 49. Ke5 {[%clk 0:00:05.8]} 49... Rb6 {[%clk 0:00:13.6]}
50. h5 {[%clk 0:00:03.6]} 50... gxh5 {[%clk 0:00:14.7]} 51. Rh6 {[%clk
0:00:04.5]} 51... Rb5+ {[%clk 0:00:09.5]} 52. Kf6 {[%clk 0:00:05.7]} 52... h4
{[%clk 0:00:09.4]} 53. g6 {[%clk 0:00:06.3]} 53... Rb6+ {[%clk 0:00:09.5]} 54.
Kf5 {[%clk 0:00:06.3]} 54... Rb5+ {[%clk 0:00:09]} 55. Kf6 {[%clk 0:00:07.5]}
55... Rb6+ {[%clk 0:00:10]} 56. Kf7 {[%clk 0:00:08.8]} 56... h3 {[%clk 0:00:10]}
57. g7 {[%clk 0:00:08.8]} 57... Rb7+ {[%clk 0:00:11.4]} 58. Kg6 {[%clk
0:00:08.8]} 58... Rxg7+ {[%clk 0:00:13.3]} 59. Kxg7 {[%clk 0:00:09.7]} 59... h2
{[%clk 0:00:15.2]} 60. Kg6 {[%clk 0:00:10.2]} 60... Kg2 {[%clk 0:00:16.8]} 61.
Kg5 {[%clk 0:00:11.1]} 61... h1=Q {[%clk 0:00:18.7]} 62. Rxh1 {[%clk 0:00:12.2]}
62... Kxh1 {[%clk 0:00:20.6]} 1/2-1/2

[Event "*** Titled Tuesday 3|2 Blitz"]
[Site "Chess.com"]
[Date "2017.05.02"]
[Round "8"]
[White "GrigorGrigorov"]
[Black "Msb2"]
[Result "0-1"]
[WhiteElo "2515"]
[BlackElo "2572"]
[TimeControl "180+2"]
[EndTime "14:49:30 PDT"]
[Termination "Msb2 won by resignation"]

1. d4 {[%clk 0:03:02]} 1... Nf6 {[%clk 0:03:01]} 2. c4 {[%clk 0:03:02.5]} 2...
e6 {[%clk 0:03:02.4]} 3. Nc3 {[%clk 0:03:03.3]} 3... Bb4 {[%clk 0:03:03.4]} 4.
e3 {[%clk 0:03:04.7]} 4... O-O {[%clk 0:03:03.8]} 5. Ne2 {[%clk 0:03:05.8]} 5...
c6 {[%clk 0:03:04.4]} 6. a3 {[%clk 0:03:06.4]} 6... Ba5 {[%clk 0:03:05.7]} 7. c5
{[%clk 0:03:07.7]} 7... d5 {[%clk 0:02:59.7]} 8. cxd6 {[%clk 0:03:07.1]} 8...
Qxd6 {[%clk 0:03:00.9]} 9. b4 {[%clk 0:03:04.7]} 9... Bc7 {[%clk 0:03:01.9]} 10.
g3 {[%clk 0:03:05]} 10... a5 {[%clk 0:02:59.6]} 11. b5 {[%clk 0:03:01.5]} 11...
Bd7 {[%clk 0:02:28.4]} 12. Bg2 {[%clk 0:02:50.3]} 12... cxb5 {[%clk 0:02:28.4]}
13. Bxb7 {[%clk 0:02:51.1]} 13... Ra7 {[%clk 0:02:29.8]} 14. Bg2 {[%clk
0:02:50.8]} 14... Bc6 {[%clk 0:02:30.9]} 15. e4 {[%clk 0:02:28.2]} 15... Qd7
{[%clk 0:02:31.3]} 16. Bg5 {[%clk 0:02:16.8]} 16... Bd8 {[%clk 0:02:25.7]} 17.
Be3 {[%clk 0:01:39.3]} 17... Rb7 {[%clk 0:02:18.8]} 18. f3 {[%clk 0:01:32]}
18... Na6 {[%clk 0:01:45.8]} 19. O-O {[%clk 0:01:32.3]} 19... Bb6 {[%clk
0:01:23.3]} 20. Bf2 {[%clk 0:01:18.5]} 20... Nc7 {[%clk 0:01:06.2]} 21. Nf4
{[%clk 0:01:16.9]} 21... Rd8 {[%clk 0:00:51.7]} 22. Nce2 {[%clk 0:01:13.2]}
22... Qe7 {[%clk 0:00:30.8]} 23. Nd3 {[%clk 0:01:04.9]} 23... b4 {[%clk
0:00:29.4]} 24. axb4 {[%clk 0:01:02.9]} 24... axb4 {[%clk 0:00:31.3]} 25. Qc2
{[%clk 0:00:53]} 25... Bb5 {[%clk 0:00:30.9]} 26. Rfb1 {[%clk 0:00:53.7]} 26...
Na6 {[%clk 0:00:30.1]} 27. Ne5 {[%clk 0:00:28.1]} 27... Rc7 {[%clk 0:00:30.6]}
28. Qb2 {[%clk 0:00:25.9]} 28... h6 {[%clk 0:00:25.6]} 29. g4 {[%clk 0:00:25.6]}
29... Nd7 {[%clk 0:00:25.9]} 30. Nf4 {[%clk 0:00:23.9]} 30... Nxe5 {[%clk
0:00:25.6]} 31. dxe5 {[%clk 0:00:25.1]} 31... Bxf2+ {[%clk 0:00:27.2]} 32. Qxf2
{[%clk 0:00:26.3]} 32... Bc4 {[%clk 0:00:24.9]} 33. Rc1 {[%clk 0:00:21.5]} 33...
b3 {[%clk 0:00:21.5]} 34. Rab1 {[%clk 0:00:19.2]} 34... Nb4 {[%clk 0:00:21.3]}
35. Qb6 {[%clk 0:00:17.3]} 35... Nc2 {[%clk 0:00:18.3]} 36. Nh5 {[%clk
0:00:11.6]} 36... Qc5+ {[%clk 0:00:19.1]} 37. Qxc5 {[%clk 0:00:11.9]} 37... Rxc5
{[%clk 0:00:21]} 38. Bf1 {[%clk 0:00:13.1]} 38... Bxf1 {[%clk 0:00:21.5]} 39.
Kxf1 {[%clk 0:00:15]} 39... Rd2 {[%clk 0:00:22.5]} 40. Rxb3 {[%clk 0:00:11.5]}
40... Rxh2 {[%clk 0:00:19.5]} 41. Kg1 {[%clk 0:00:12.6]} 41... Rd2 {[%clk
0:00:17.6]} 42. Rb8+ {[%clk 0:00:13.1]} 42... Kh7 {[%clk 0:00:18.9]} 43. Rb7
{[%clk 0:00:14.2]} 43... Kg6 {[%clk 0:00:14.8]} 44. f4 {[%clk 0:00:13.3]} 44...
Rc3 {[%clk 0:00:12.7]} 45. f5+ {[%clk 0:00:10.7]} 45... exf5 {[%clk 0:00:14.6]}
46. exf5+ {[%clk 0:00:10.9]} 46... Kg5 {[%clk 0:00:16.5]} 47. e6 {[%clk
0:00:10.9]} 47... fxe6 {[%clk 0:00:17]} 48. fxe6 {[%clk 0:00:11.7]} 48... Kxg4
{[%clk 0:00:17.8]} 49. e7 {[%clk 0:00:11.4]} 49... Re2 {[%clk 0:00:19]} 50. Nxg7
{[%clk 0:00:10.2]} 50... Kh3 {[%clk 0:00:18.3]} 51. e8=Q {[%clk 0:00:10.2]}
51... Rg2+ {[%clk 0:00:17.5]} 52. Kh1 {[%clk 0:00:11.4]} 52... Rh2+ {[%clk
0:00:18.5]} 53. Kg1 {[%clk 0:00:12.6]} 53... Rg3+ {[%clk 0:00:13.9]} 54. Kf1
{[%clk 0:00:13.9]} 54... Rf3+ {[%clk 0:00:15.7]} 55. Kg1 {[%clk 0:00:14.3]}
55... Rg2+ {[%clk 0:00:17.4]} 56. Kh1 {[%clk 0:00:15.6]} 56... Rh2+ {[%clk
0:00:18.8]} 57. Kg1 {[%clk 0:00:16.8]} 57... Rg3+ {[%clk 0:00:18]} 58. Kf1
{[%clk 0:00:17.7]} 58... Ne3+ {[%clk 0:00:19.1]} 59. Qxe3 {[%clk 0:00:12.7]}
59... Rxe3 {[%clk 0:00:21]} 60. Kg1 {[%clk 0:00:12.4]} 60... Rg3+ {[%clk
0:00:21.4]} 61. Kf1 {[%clk 0:00:13.6]} 61... Rh1+ {[%clk 0:00:21.4]} 62. Kf2
{[%clk 0:00:15.1]} 62... Rxc1 {[%clk 0:00:23.3]} 63. Nf5 {[%clk 0:00:15.7]}
63... Rg2+ {[%clk 0:00:24.7]} 64. Kf3 {[%clk 0:00:15.7]} 64... Rf1+ {[%clk
0:00:25.7]} 65. Ke4 {[%clk 0:00:17.1]} 65... Rg4+ {[%clk 0:00:27]} 66. Ke5
{[%clk 0:00:17.8]} 66... Rg5 {[%clk 0:00:28.4]} 67. Rb3+ {[%clk 0:00:18]} 67...
Kg4 {[%clk 0:00:23.1]} 68. Rb4+ {[%clk 0:00:18.2]} 68... Kh3 {[%clk 0:00:20.4]}
69. Rb3+ {[%clk 0:00:17.5]} 69... Kh2 {[%clk 0:00:19.9]} 70. Rb2+ {[%clk
0:00:18]} 70... Kg1 {[%clk 0:00:20.9]} 0-1

[Event "*** Titled Tuesday 3|2 Blitz"]
[Site "Chess.com"]
[Date "2017.05.02"]
[Round "8"]
[White "IMVoja"]
[Black "hermionegrangermagic"]
[Result "0-1"]
[WhiteElo "2328"]
[BlackElo "2291"]
[TimeControl "180+2"]
[EndTime "14:49:34 PDT"]
[Termination "hermionegrangermagic won by checkmate"]

1. Nf3 {[%clk 0:03:02]} 1... d5 {[%clk 0:02:51.1]} 2. c4 {[%clk 0:03:00.7]} 2...
e6 {[%clk 0:02:48.2]} 3. g3 {[%clk 0:02:59.3]} 3... Nf6 {[%clk 0:02:49.3]} 4.
Bg2 {[%clk 0:03:00.3]} 4... Be7 {[%clk 0:02:50.5]} 5. O-O {[%clk 0:03:01.5]}
5... O-O {[%clk 0:02:52]} 6. b3 {[%clk 0:03:02.9]} 6... c5 {[%clk 0:02:50.6]} 7.
Bb2 {[%clk 0:03:03.8]} 7... Nc6 {[%clk 0:02:50.3]} 8. e3 {[%clk 0:03:03.8]} 8...
d4 {[%clk 0:02:51.4]} 9. exd4 {[%clk 0:03:04.1]} 9... cxd4 {[%clk 0:02:52.7]}
10. d3 {[%clk 0:03:03.1]} 10... Ne8 {[%clk 0:02:53.4]} 11. Na3 {[%clk
0:03:02.1]} 11... f6 {[%clk 0:02:53.6]} 12. Nc2 {[%clk 0:02:58.3]} 12... e5
{[%clk 0:02:54.8]} 13. a3 {[%clk 0:02:59]} 13... a5 {[%clk 0:02:54.6]} 14. Qd2
{[%clk 0:02:58]} 14... Be6 {[%clk 0:02:54.5]} 15. b4 {[%clk 0:02:58]} 15... axb4
{[%clk 0:02:51.6]} 16. axb4 {[%clk 0:02:58.9]} 16... Rxa1 {[%clk 0:02:17.8]} 17.
Rxa1 {[%clk 0:02:56.9]} 17... Qd7 {[%clk 0:02:16.9]} 18. b5 {[%clk 0:02:55.1]}
18... Nd8 {[%clk 0:02:17.4]} 19. Nb4 {[%clk 0:02:47.4]} 19... Nf7 {[%clk
0:01:59]} 20. Ne1 {[%clk 0:02:45]} 20... h5 {[%clk 0:01:55.6]} 21. h4 {[%clk
0:02:42.8]} 21... g5 {[%clk 0:01:56.2]} 22. hxg5 {[%clk 0:02:41.3]} 22... Nxg5
{[%clk 0:01:56.4]} 23. Nd5 {[%clk 0:02:39.9]} 23... f5 {[%clk 0:01:44.7]} 24.
Nxe7+ {[%clk 0:02:35.9]} 24... Qxe7 {[%clk 0:01:43.8]} 25. Ba3 {[%clk 0:02:37]}
25... Qf6 {[%clk 0:01:37]} 26. Bxf8 {[%clk 0:02:35.6]} 26... Kxf8 {[%clk
0:01:38.3]} 27. f4 {[%clk 0:02:30.4]} 27... Nf7 {[%clk 0:01:38.1]} 28. Nf3
{[%clk 0:02:23.9]} 28... e4 {[%clk 0:01:28.3]} 29. dxe4 {[%clk 0:02:23.8]} 29...
d3 {[%clk 0:01:29.3]} 30. e5 {[%clk 0:02:23.6]} 30... Qd8 {[%clk 0:01:28]} 31.
Qc3 {[%clk 0:02:14.1]} 31... Nh6 {[%clk 0:01:25.2]} 32. Rd1 {[%clk 0:02:08]}
32... Ng4 {[%clk 0:01:22.4]} 33. Rxd3 {[%clk 0:02:05.9]} 33... Qb6+ {[%clk
0:01:22.3]} 34. Qd4 {[%clk 0:02:06.1]} 34... Qa5 {[%clk 0:01:22.6]} 35. Rd1
{[%clk 0:02:04.6]} 35... Qa2 {[%clk 0:01:20.2]} 36. Ng5 {[%clk 0:02:04.4]} 36...
Bxc4 {[%clk 0:01:18.1]} 37. e6 {[%clk 0:01:54.8]} 37... Bxe6 {[%clk 0:01:03.2]}
38. Nxe6+ {[%clk 0:01:31.7]} 38... Qxe6 {[%clk 0:01:01.9]} 39. Qc5+ {[%clk
0:01:30.2]} 39... Kg7 {[%clk 0:00:57.2]} 40. Qd4+ {[%clk 0:01:29.9]} 40... Kg6
{[%clk 0:00:40.6]} 41. Bf3 {[%clk 0:01:19.7]} 41... Qb3 {[%clk 0:00:27.8]} 42.
Qd3 {[%clk 0:01:09.5]} 42... Qb4 {[%clk 0:00:15.6]} 43. Bxg4 {[%clk 0:01:09.4]}
43... hxg4 {[%clk 0:00:15.9]} 44. Qd5 {[%clk 0:01:04.9]} 44... Nf6 {[%clk
0:00:13.1]} 45. Qd3 {[%clk 0:01:02.2]} 45... Ne4 {[%clk 0:00:12.8]} 46. Qd5
{[%clk 0:00:48.1]} 46... Qe7 {[%clk 0:00:06.4]} 47. Qe5 {[%clk 0:00:45.2]} 47...
Qf7 {[%clk 0:00:04.9]} 48. Qd5 {[%clk 0:00:27.7]} 48... Qe7 {[%clk 0:00:05.6]}
49. Qd3 {[%clk 0:00:27]} 49... Qc5+ {[%clk 0:00:05.6]} 50. Qd4 {[%clk
0:00:28.3]} 50... Qxb5 {[%clk 0:00:05.3]} 51. Qe3 {[%clk 0:00:27]} 51... Qc6
{[%clk 0:00:05.3]} 52. Rc1 {[%clk 0:00:24.2]} 52... Qd6 {[%clk 0:00:05.6]} 53.
Re1 {[%clk 0:00:23]} 53... Kf6 {[%clk 0:00:05]} 54. Kg2 {[%clk 0:00:20.5]} 54...
Kg6 {[%clk 0:00:06.1]} 55. Re2 {[%clk 0:00:21.3]} 55... Kf6 {[%clk 0:00:07.4]}
56. Qc1 {[%clk 0:00:20.2]} 56... Qd3 {[%clk 0:00:07.4]} 57. Qe3 {[%clk
0:00:19.9]} 57... Qd5 {[%clk 0:00:07.7]} 58. Re1 {[%clk 0:00:20.5]} 58... Nd2+
{[%clk 0:00:07.9]} 59. Kg1 {[%clk 0:00:16.5]} 59... Nf3+ {[%clk 0:00:08.8]} 60.
Kf2 {[%clk 0:00:17.9]} 60... Nxe1 {[%clk 0:00:09.9]} 61. Kxe1 {[%clk 0:00:19.4]}
61... Qe4 {[%clk 0:00:11]} 62. Kd2 {[%clk 0:00:20.1]} 62... Qxe3+ {[%clk
0:00:11.6]} 63. Kxe3 {[%clk 0:00:21.6]} 63... Ke6 {[%clk 0:00:13.2]} 64. Kd4
{[%clk 0:00:23.1]} 64... Kd6 {[%clk 0:00:14.5]} 65. Kc4 {[%clk 0:00:24.3]} 65...
Kc6 {[%clk 0:00:15.8]} 66. Kd4 {[%clk 0:00:25.1]} 66... b5 {[%clk 0:00:17.1]}
67. Ke5 {[%clk 0:00:25.2]} 67... b4 {[%clk 0:00:18.3]} 68. Kxf5 {[%clk
0:00:26.7]} 68... b3 {[%clk 0:00:19.6]} 69. Kxg4 {[%clk 0:00:27.8]} 69... b2
{[%clk 0:00:21]} 70. Kg5 {[%clk 0:00:29.7]} 70... b1=Q {[%clk 0:00:21.8]} 71. f5
{[%clk 0:00:31.6]} 71... Kd6 {[%clk 0:00:22.9]} 72. g4 {[%clk 0:00:32.9]} 72...
Ke5 {[%clk 0:00:23.7]} 73. Kg6 {[%clk 0:00:31.7]} 73... Qb6+ {[%clk 0:00:24.3]}
74. Kh5 {[%clk 0:00:30.9]} 74... Qf6 {[%clk 0:00:24.3]} 75. g5 {[%clk
0:00:31.7]} 75... Qxf5 {[%clk 0:00:25.4]} 76. Kh6 {[%clk 0:00:32.8]} 76... Ke6
{[%clk 0:00:25.6]} 77. g6 {[%clk 0:00:33.8]} 77... Kf6 {[%clk 0:00:26.3]} 78. g7
{[%clk 0:00:34.3]} 78... Qg6# {[%clk 0:00:27.1]} 0-1

[Event "*** Titled Tuesday 3|2 Blitz"]
[Site "Chess.com"]
[Date "2017.05.02"]
[Round "8"]
[White "SerGo055"]
[Black "oskariot"]
[Result "1/2-1/2"]
[WhiteElo "2401"]
[BlackElo "2448"]
[TimeControl "180+2"]
[EndTime "14:50:20 PDT"]
[Termination "Game drawn by repetition"]

1. d4 {[%clk 0:03:01.9]} 1... Nf6 {[%clk 0:02:45.7]} 2. Nf3 {[%clk 0:03:02.5]}
2... g6 {[%clk 0:02:41.5]} 3. c4 {[%clk 0:03:03.2]} 3... Bg7 {[%clk 0:02:40.8]}
4. Nc3 {[%clk 0:03:04.2]} 4... O-O {[%clk 0:02:42]} 5. Bg5 {[%clk 0:03:04.4]}
5... c5 {[%clk 0:02:36.7]} 6. d5 {[%clk 0:03:05.1]} 6... h6 {[%clk 0:02:34.7]}
7. Bf4 {[%clk 0:03:02.1]} 7... d6 {[%clk 0:02:05.8]} 8. Qd2 {[%clk 0:03:02.4]}
8... g5 {[%clk 0:02:06.9]} 9. Bg3 {[%clk 0:03:00.8]} 9... Nh5 {[%clk 0:02:07.8]}
10. e4 {[%clk 0:03:01.3]} 10... f5 {[%clk 0:01:53.5]} 11. exf5 {[%clk 0:02:59]}
11... Bxf5 {[%clk 0:01:53.2]} 12. Bd3 {[%clk 0:03:00]} 12... Qd7 {[%clk
0:01:49.2]} 13. O-O {[%clk 0:02:48.8]} 13... Bxd3 {[%clk 0:01:24.3]} 14. Qxd3
{[%clk 0:02:49.5]} 14... Qf5 {[%clk 0:01:25.5]} 15. Qe2 {[%clk 0:02:27.1]} 15...
Rf7 {[%clk 0:01:24.8]} 16. Nd2 {[%clk 0:02:06.3]} 16... Nf4 {[%clk 0:01:19.4]}
17. Bxf4 {[%clk 0:01:59.7]} 17... Qxf4 {[%clk 0:01:20.3]} 18. Nde4 {[%clk
0:01:50.5]} 18... Nd7 {[%clk 0:01:19.3]} 19. Rae1 {[%clk 0:01:36.3]} 19... Raf8
{[%clk 0:01:18.9]} 20. b3 {[%clk 0:01:25.7]} 20... Bd4 {[%clk 0:01:08.1]} 21.
Qc2 {[%clk 0:01:21]} 21... Ne5 {[%clk 0:00:48.4]} 22. Ne2 {[%clk 0:01:08.2]}
22... Qg4 {[%clk 0:00:49.1]} 23. Nxd4 {[%clk 0:00:38.5]} 23... cxd4 {[%clk
0:00:50.1]} 24. Kh1 {[%clk 0:00:37.2]} 24... d3 {[%clk 0:00:40.8]} 25. Qd2
{[%clk 0:00:37]} 25... Qh5 {[%clk 0:00:29.2]} 26. Re3 {[%clk 0:00:32.5]} 26...
Ng4 {[%clk 0:00:26.3]} 27. Rh3 {[%clk 0:00:33]} 27... Qg6 {[%clk 0:00:25.3]} 28.
Qxd3 {[%clk 0:00:19.9]} 28... Rxf2 {[%clk 0:00:21.1]} 29. Nxf2 {[%clk 0:00:16]}
29... Qxd3 {[%clk 0:00:20]} 30. Rxd3 {[%clk 0:00:16.2]} 30... Nxf2+ {[%clk
0:00:21.3]} 31. Rxf2 {[%clk 0:00:16.7]} 31... Rxf2 {[%clk 0:00:22.8]} 32. h4
{[%clk 0:00:14.8]} 32... Rxa2 {[%clk 0:00:23.5]} 33. hxg5 {[%clk 0:00:14.9]}
33... hxg5 {[%clk 0:00:25]} 34. Rg3 {[%clk 0:00:16.8]} 34... Kf7 {[%clk
0:00:25.8]} 35. Rxg5 {[%clk 0:00:17.9]} 35... Rb2 {[%clk 0:00:27.3]} 36. Rg3
{[%clk 0:00:18.9]} 36... a6 {[%clk 0:00:28.5]} 37. Rf3+ {[%clk 0:00:17.3]} 37...
Kg6 {[%clk 0:00:29.3]} 38. Kh2 {[%clk 0:00:17.4]} 38... b5 {[%clk 0:00:29.8]}
39. Re3 {[%clk 0:00:14.4]} 39... Kf6 {[%clk 0:00:28.2]} 40. Rf3+ {[%clk
0:00:15.1]} 40... Ke5 {[%clk 0:00:27.1]} 41. Re3+ {[%clk 0:00:14]} 41... Kd4
{[%clk 0:00:28.5]} 42. Rxe7 {[%clk 0:00:14.9]} 42... Rxb3 {[%clk 0:00:27.8]} 43.
cxb5 {[%clk 0:00:14.9]} 43... axb5 {[%clk 0:00:28.2]} 44. g4 {[%clk 0:00:14.3]}
44... Kxd5 {[%clk 0:00:29.6]} 45. g5 {[%clk 0:00:15.5]} 45... Rf3 {[%clk
0:00:27.2]} 46. g6 {[%clk 0:00:12.3]} 46... Rf6 {[%clk 0:00:26.2]} 47. g7 {[%clk
0:00:13.4]} 47... Rg6 {[%clk 0:00:27.6]} 48. Kh3 {[%clk 0:00:14.9]} 48... b4
{[%clk 0:00:26.9]} 49. Kh4 {[%clk 0:00:16.2]} 49... b3 {[%clk 0:00:25.9]} 50.
Kh5 {[%clk 0:00:17.4]} 50... b2 {[%clk 0:00:19.1]} 51. Kxg6 {[%clk 0:00:13]}
51... b1=Q+ {[%clk 0:00:20.2]} 52. Kf7 {[%clk 0:00:13.2]} 52... Qf5+ {[%clk
0:00:19.9]} 53. Ke8 {[%clk 0:00:13.3]} 53... Qg6+ {[%clk 0:00:14.8]} 54. Kf8
{[%clk 0:00:14.4]} 54... Qf5+ {[%clk 0:00:14.6]} 55. Ke8 {[%clk 0:00:15.5]}
55... Qc8+ {[%clk 0:00:11]} 56. Kf7 {[%clk 0:00:16.3]} 56... Qf5+ {[%clk
0:00:12.1]} 57. Ke8 {[%clk 0:00:16.8]} 57... Qg6+ {[%clk 0:00:13.3]} 58. Kf8
{[%clk 0:00:17.9]} 58... Qf6+ {[%clk 0:00:14.7]} 59. Ke8 {[%clk 0:00:18.2]}
59... Qg5 {[%clk 0:00:13]} 60. Kf8 {[%clk 0:00:16.3]} 60... Qf5+ {[%clk
0:00:11.7]} 61. Ke8 {[%clk 0:00:16.8]} 61... Qg6+ {[%clk 0:00:12.5]} 62. Kf8
{[%clk 0:00:17.9]} 62... Qh6 {[%clk 0:00:13.4]} 63. Ke8 {[%clk 0:00:17.5]} 63...
Qh7 {[%clk 0:00:08.8]} 64. Kf8 {[%clk 0:00:18.5]} 64... Qf5+ {[%clk 0:00:08.6]}
65. Ke8 {[%clk 0:00:15.3]} 1/2-1/2

[Event "*** Titled Tuesday 3|2 Blitz"]
[Site "Chess.com"]
[Date "2017.05.02"]
[Round "9"]
[White "aa175"]
[Black "DavidForthoffer"]
[Result "1-0"]
[WhiteElo "1828"]
[BlackElo "2083"]
[TimeControl "180+2"]
[EndTime "14:55:38 PDT"]
[Termination "aa175 won by resignation"]

1. e4 {[%clk 0:03:02]} 1... c5 {[%clk 0:03:00.7]} 2. Nf3 {[%clk 0:03:02.5]} 2...
d6 {[%clk 0:03:02]} 3. d4 {[%clk 0:03:03.2]} 3... cxd4 {[%clk 0:03:01.4]} 4.
Nxd4 {[%clk 0:03:04.3]} 4... Nf6 {[%clk 0:03:02.7]} 5. Nc3 {[%clk 0:03:05.4]}
5... a6 {[%clk 0:03:04.1]} 6. Be3 {[%clk 0:03:06.3]} 6... e6 {[%clk 0:03:05.5]}
7. f3 {[%clk 0:03:05.8]} 7... b5 {[%clk 0:03:06.9]} 8. Qd2 {[%clk 0:03:06.6]}
8... Nbd7 {[%clk 0:03:08.3]} 9. g4 {[%clk 0:03:06.9]} 9... h6 {[%clk 0:03:08.7]}
10. h4 {[%clk 0:03:07.8]} 10... b4 {[%clk 0:03:08.8]} 11. Na4 {[%clk 0:03:06.7]}
11... d5 {[%clk 0:03:09.9]} 12. O-O-O {[%clk 0:02:53.6]} 12... dxe4 {[%clk
0:03:08.9]} 13. Bc4 {[%clk 0:02:37]} 13... Ne5 {[%clk 0:03:00.2]} 14. Bb3 {[%clk
0:02:26.4]} 14... Bd7 {[%clk 0:02:44.4]} 15. Kb1 {[%clk 0:02:17.3]} 15... Nxf3
{[%clk 0:02:43.2]} 16. Nxf3 {[%clk 0:02:16.1]} 16... exf3 {[%clk 0:02:45.1]} 17.
Nb6 {[%clk 0:02:12.8]} 17... Ra7 {[%clk 0:02:40.1]} 18. g5 {[%clk 0:01:46.4]}
18... hxg5 {[%clk 0:02:40.3]} 19. hxg5 {[%clk 0:01:47.6]} 19... Rxh1 {[%clk
0:02:41.8]} 20. Rxh1 {[%clk 0:01:48.3]} 20... Ng4 {[%clk 0:02:21.5]} 21. Rh8
{[%clk 0:01:17.8]} 21... Nxe3 {[%clk 0:02:20.7]} 22. Qd6 {[%clk 0:01:18.4]} 1-0